bitfinex/quotes_SOLUSD_20250917
["timestamp","ask_amount","ask_price","bid_price","bid_amount"]
[1758128649000,48.83490748,234.55,234.54,0.06]
[1758128649182,53.09839074,234.55,234.54,0.06]
[1758128653279,46.57559401,234.55,234.54,0.06]
[1758128653785,51.53907727,234.55,234.54,0.06]
[1758128653995,53.07839074,234.55,234.54,0.06]
[1758128656308,15.13490748,234.55,234.54,0.06]
[1758128656509,48.81490748,234.55,234.54,0.06]
[1758128657212,53.07839074,234.55,234.54,0.06]
[1758128657508,15.13490748,234.55,234.54,0.06]
[1758128657709,48.09490748,234.55,234.54,0.06]
[1758128658313,46.55559401,234.55,234.54,0.06]
[1758128658817,48.09490748,234.55,234.54,0.06]
[1758128659613,48.79490748,234.55,234.54,0.06]
[1758128659793,53.05839074,234.55,234.54,0.06]
[1758128660615,20.09839074,234.55,234.54,0.06]
[1758128660914,53.03839074,234.55,234.54,0.06]
[1758128661707,15.83490748,234.55,234.54,0.06]
[1758128661919,13.59559401,234.55,234.54,0.75]
[1758128662108,46.53559401,234.55,234.54,0.06]
[1758128669528,46.53559401,234.55,234.54,0.75]
[1758128669834,46.49559401,234.55,234.54,0.06]
[1758128670528,13.59559401,234.55,234.54,0.06]
[1758128670726,46.49559401,234.55,234.54,0.06]
[1758128671030,46.49559401,234.55,234.54,0.75]
[1758128671526,26.0,234.57,234.54,5.01366504]
[1758128671716,10.65519379,234.63,234.56,2.40849956]
[1758128671717,0.7,234.61,234.56,2.40849956]
[1758128671919,0.7,234.61,234.55,0.69]
[1758128671920,13.59559401,234.59,234.57,3.09849956]
[1758128672221,0.70000001,234.63,234.57,2.40849956]
[1758128672222,32.9,234.58,234.57,2.40849956]
[1758128672724,32.9,234.58,234.57,0.69]
[1758128673310,32.9,234.58,234.57,4.95311975]
[1758128673625,32.9,234.58,234.57,4.26311975]
[1758128673803,32.9,234.58,234.55,4.26332714]
[1758128674003,32.9,234.58,234.55,4.95332714]
[1758128675704,32.9,234.58,234.56,0.69]
[1758128675901,32.9,234.58,234.55,4.26332714]
[1758128676123,0.71,234.57,234.54,0.06]
[1758128676326,32.88,234.56,234.54,0.06]
[1758128676632,32.88,234.56,234.54,4.32358198]
[1758128677532,32.88,234.56,234.54,5.01358198]
[1758128678134,32.88,234.56,234.54,4.32358198]
[1758128680032,33.59,234.56,234.54,0.06]
[1758128680222,0.71,234.55,234.54,0.06]
[1758128680425,3.11849956,234.55,234.54,0.06]
[1758128680613,16.71409357,234.55,234.54,0.06]
[1758128681224,16.00409357,234.55,234.54,0.06]
[1758128681547,32.88,234.55,234.54,7.4221646]
[1758128683332,13.59559401,234.62,234.54,18.08132721]
[1758128683649,1e-08,234.63,234.61,2.40849956]
[1758128683830,1e-08,234.63,234.61,0.69]
[1758128683831,32.88,234.62,234.61,0.69]
[1758128684045,32.88,234.62,234.55,0.42634832]
[1758128684241,32.88,234.62,234.59,0.69]
[1758128684630,1e-08,234.63,234.59,0.69]
[1758128684957,1e-08,234.63,234.62,2.40849956]
[1758128685332,1e-08,234.63,234.62,6.67071079]
[1758128686931,1e-08,234.63,234.62,4.26221123]
[1758128687543,1e-08,234.63,234.62,6.67071079]
[1758128687740,1e-08,234.63,234.62,7.36071079]
[1758128691453,1e-08,234.63,234.62,6.67071079]
[1758128696152,1e-08,234.63,234.62,6.73071079]
[1758128696348,1e-08,234.63,234.62,7.42071079]
[1758128698173,1e-08,234.63,234.62,4.32221123]
[1758128698351,0.71000001,234.63,234.62,4.32221123]
[1758128700186,0.71000001,234.63,234.62,0.06]
[1758128700484,16.71409358,234.63,234.62,0.06]
[1758128700852,20.97612315,234.63,234.62,0.06]
[1758128701049,14.30559402,234.63,234.62,0.06]
[1758128701264,16.71409358,234.63,234.62,0.06]
[1758128701659,14.30559402,234.63,234.62,0.06]
[1758128702285,26.71000001,234.63,234.62,0.06]
[1758128702583,58.86000001,234.63,234.62,4.32221123]
[1758128702957,59.57000001,234.63,234.62,4.32221123]
[1758128703291,33.57000001,234.63,234.62,4.32221123]
[1758128703662,33.57000001,234.63,234.62,0.06]
[1758128703868,53.83612315,234.63,234.62,0.06]
[1758128705777,49.57409358,234.63,234.62,0.06]
[1758128707479,53.83612315,234.63,234.62,0.06]
[1758128708892,1e-08,234.63,234.62,4.32221123]
[1758128709093,33.54000001,234.63,234.62,0.06]
[1758128709302,47.13559402,234.63,234.62,0.06]
[1758128709789,49.54409358,234.63,234.62,0.06]
[1758128710286,53.80612315,234.63,234.62,0.06]
[1758128711763,54.8730449,234.63,234.62,0.06]
[1758128711963,39.59559401,234.6,234.59,0.06]
[1758128712189,13.59559401,234.59,234.57,0.06]
[1758128712392,48.88409357,234.58,234.57,0.06]
[1758128712766,50.63122112,234.58,234.57,0.06]
[1758128713166,49.56409357,234.58,234.57,0.06]
[1758128713672,53.82703158,234.58,234.57,0.06]
[1758128714892,53.80703158,234.58,234.57,0.06]
[1758128718488,16.00409357,234.58,234.57,0.06]
[1758128718687,53.80703158,234.58,234.57,0.06]
[1758128720599,18.53853202,234.58,234.57,0.06]
[1758128720803,53.80703158,234.58,234.57,0.06]
[1758128721693,53.12703158,234.58,234.57,0.06]
[1758128722613,53.80703158,234.58,234.57,0.06]
[1758128722906,53.12703158,234.58,234.57,0.06]
[1758128723124,13.59559401,234.58,234.57,3.14849956]
[1758128723290,32.86,234.58,234.57,7.41161931]
[1758128723813,26.0,234.62,234.57,7.41161931]
[1758128724004,32.86,234.61,234.58,3.08849956]
[1758128724330,1e-08,234.63,234.59,0.68]
[1758128724331,32.86,234.6,234.59,0.68]
[1758128724811,32.86,234.6,234.57,2.46849956]
[1758128724812,32.86,234.6,234.57,0.74]
[1758128725217,32.86,234.6,234.58,0.68]
[1758128725507,16.68409357,234.59,234.57,0.06]
[1758128725696,48.88409357,234.58,234.57,0.06]
[1758128725897,48.01679398,234.58,234.57,0.06]
[1758128726711,46.47559401,234.58,234.57,0.06]
[1758128727184,46.47559401,234.58,234.57,0.74]
[1758128727785,32.88,234.58,234.57,2.28119997]
[1758128728586,32.88,234.58,234.57,6.54431818]
[1758128728907,32.9,234.58,234.57,6.54431818]
[1758128729209,32.9,234.58,234.57,0.06]
[1758128729386,46.49559401,234.58,234.57,0.06]
[1758128729991,46.49559401,234.58,234.57,0.74]
[1758128730486,32.9,234.58,234.57,6.54431972]
[1758128732722,32.93,234.59,234.57,6.54431972]
[1758128732928,32.93,234.59,234.58,0.68]
[1758128733213,0.03,234.59,234.58,2.22119997]
[1758128733689,0.03,234.59,234.57,4.32311975]
[1758128733889,32.95,234.59,234.57,4.32311975]
[1758128734387,13.59559401,234.58,234.57,0.06]
[1758128734589,15.84679398,234.58,234.57,0.06]
[1758128736402,20.10973199,234.58,234.57,0.06]
[1758128737194,18.56853202,234.58,234.57,0.06]
[1758128738009,46.55559401,234.58,234.57,0.06]
[1758128739210,26.03,234.59,234.57,0.06]
[1758128739211,13.62559401,234.59,234.57,0.06]
[1758128739415,32.96,234.58,234.57,0.06]
[1758128741219,32.96,234.58,234.57,4.32311975]
[1758128741401,32.96,234.58,234.57,4.98311975]
[1758128743017,32.94,234.58,234.57,6.52431972]
[1758128745923,32.94,234.58,234.57,5.86431972]
[1758128746122,32.94,234.58,234.57,4.32311975]
[1758128746310,32.94,234.58,234.57,5.86431972]
[1758128746725,32.94,234.58,234.57,4.32311975]
[1758128748508,32.94,234.58,234.57,0.06]
[1758128748712,48.78679398,234.58,234.57,0.06]
[1758128748901,53.04973199,234.58,234.57,0.06]
[1758128754531,48.78679398,234.58,234.57,0.06]
[1758128755243,53.04973199,234.58,234.57,0.06]
[1758128755737,57.37373613,234.58,234.57,0.06]
[1758128757323,70.19373613,234.58,234.57,0.06]
[1758128757512,57.37373613,234.58,234.57,0.06]
[1758128759034,55.81253616,234.58,234.57,0.06]
[1758128759245,57.35373613,234.58,234.57,0.06]
[1758128759431,24.43373613,234.58,234.57,0.06]
[1758128759737,13.59559401,234.58,234.57,0.06]
[1758128759943,48.07679398,234.58,234.57,0.06]
[1758128760440,53.01973199,234.58,234.57,0.06]
[1758128763725,52.99973199,234.58,234.57,0.06]
[1758128765525,54.70822104,234.58,234.57,0.06]
[1758128765739,53.16702107,234.58,234.57,0.06]
[1758128765939,54.70822104,234.58,234.57,0.06]
[1758128766651,53.16702107,234.58,234.57,0.06]
[1758128766845,54.70822104,234.58,234.57,0.06]
[1758128767250,52.99973199,234.58,234.57,0.06]
[1758128768042,54.70814807,234.58,234.57,0.06]
[1758128768353,60.44119997,234.58,234.57,0.06]
[1758128769242,64.70413798,234.58,234.57,0.06]
[1758128769751,31.80413798,234.58,234.57,0.06]
[1758128769958,64.70413798,234.58,234.57,0.77]
[1758128770135,48.03679398,234.58,234.57,0.77]
[1758128770334,52.29973199,234.58,234.57,0.06]
[1758128772758,50.75853202,234.58,234.57,0.06]
[1758128772960,52.29973199,234.58,234.57,0.06]
[1758128773172,52.29973199,234.58,234.57,0.77]
[1758128774971,13.59559401,234.58,234.57,0.77]
[1758128775146,46.47559401,234.58,234.57,0.77]
[1758128777148,32.88,234.58,234.57,0.77]
[1758128777354,46.47559401,234.58,234.57,0.77]
[1758128778747,13.59559401,234.58,234.57,0.77]
[1758128778958,46.47559401,234.58,234.57,0.77]
[1758128783472,48.71679398,234.58,234.57,0.06]
[1758128784680,48.01679398,234.58,234.57,0.06]
[1758128785254,52.27973199,234.58,234.57,0.06]
[1758128785576,52.97973199,234.58,234.57,0.06]
[1758128785774,53.84722154,234.58,234.57,0.06]
[1758128786577,53.14722154,234.58,234.57,0.06]
[1758128787465,53.84722154,234.58,234.57,0.06]
[1758128788664,51.43853202,234.58,234.57,0.06]
[1758128788866,53.14722154,234.58,234.57,0.06]
[1758128789066,48.88428353,234.58,234.57,0.06]
[1758128791172,53.14722154,234.58,234.57,0.06]
[1758128792487,50.73853202,234.58,234.57,0.06]
[1758128792690,53.14722154,234.58,234.57,0.06]
[1758128793192,20.26722154,234.58,234.57,0.06]
[1758128793400,53.14722154,234.58,234.57,0.06]
[1758128796071,53.80722154,234.58,234.57,0.06]
[1758128797008,53.14722154,234.58,234.57,0.06]
[1758128797197,53.80722154,234.58,234.57,0.06]
[1758128799509,53.14722154,234.58,234.57,0.06]
[1758128801415,20.26722154,234.58,234.57,0.06]
[1758128801710,53.14722154,234.58,234.57,0.06]
[1758128807913,48.88428353,234.58,234.57,0.75]
[1758128808119,26.0,234.58,234.57,0.75]
[1758128808422,32.88,234.58,234.57,5.01311975]
[1758128808798,32.88,234.58,234.57,0.75]
[1758128810623,32.91,234.59,234.57,0.75]
[1758128810996,32.91,234.59,234.57,5.01308833]
[1758128811908,32.91,234.59,234.58,0.69]
[1758128812894,0.03,234.59,234.58,0.69]
[1758128813115,32.89,234.59,234.58,0.69]
[1758128813316,0.03,234.59,234.58,7.36162753]
[1758128817321,0.03,234.59,234.57,0.06]
[1758128817520,0.03,234.59,234.58,0.69]
[1758128819634,26.72,234.59,234.57,0.06]
[1758128819834,2.40868952,234.58,234.57,0.06]
[1758128821607,20.95722154,234.58,234.57,0.06]
[1758128825124,18.54853202,234.58,234.57,0.06]
[1758128825424,20.95722154,234.58,234.57,0.06]
[1758128825825,18.54853202,234.58,234.57,0.06]
[1758128826134,20.95722154,234.58,234.57,0.06]
[1758128827419,18.54853202,234.58,234.57,0.06]
[1758128827645,20.95722154,234.58,234.57,0.06]
[1758128829139,53.12722154,234.58,234.57,0.06]
[1758128830535,53.78722154,234.58,234.57,0.06]
[1758128831444,51.37853202,234.58,234.57,0.06]
[1758128831652,53.78722154,234.58,234.57,0.06]
[1758128832448,20.92722154,234.58,234.57,0.06]
[1758128832633,53.78722154,234.58,234.57,0.06]
[1758128832945,54.85425826,234.58,234.57,0.06]
[1758128833244,56.56289328,234.58,234.57,0.06]
[1758128833937,55.49585656,234.58,234.57,0.06]
[1758128836445,56.56296359,234.58,234.57,0.06]
[1758128837173,39.59559401,234.55,234.54,0.06]
[1758128837353,74.86428353,234.55,234.54,0.06]
[1758128837670,79.78776679,234.55,234.54,0.06]
[1758128837861,81.49654779,234.55,234.54,0.06]
[1758128839260,48.63654779,234.55,234.54,0.06]
[1758128839573,80.83654779,234.55,234.54,0.06]
[1758128839744,78.42785827,234.55,234.54,0.06]
[1758128839943,80.83654779,234.55,234.54,0.78]
[1758128840466,80.83654779,234.55,234.54,0.06]
[1758128841147,80.83654779,234.55,234.54,0.78]
[1758128843071,79.12776679,234.55,234.54,0.78]
[1758128843571,74.86428353,234.55,234.54,0.06]
[1758128844451,79.12776679,234.55,234.54,0.06]
[1758128845161,79.78776679,234.55,234.54,0.06]
[1758128845759,78.92184026,234.55,234.54,0.06]
[1758128845946,79.98908297,234.55,234.54,0.06]
[1758128846346,78.92184026,234.55,234.54,0.06]
[1758128846553,13.59559401,234.54,234.52,0.06]
[1758128846850,13.59559401,234.54,234.49,0.06]
[1758128846851,39.59559401,234.5,234.49,0.06]
[1758128847052,73.998357,234.5,234.49,0.06]
[1758128847370,74.658357,234.5,234.49,0.06]
[1758128847569,13.59559401,234.49,234.48,0.06]
[1758128847862,39.59559401,234.47,234.39,0.72]
[1758128848069,73.998357,234.47,234.38,4.46656934]
[1758128848267,73.998357,234.47,234.4,0.72]
[1758128848570,74.658357,234.47,234.4,0.72]
[1758128849379,78.92329494,234.47,234.4,0.72]
[1758128851369,78.92329494,234.47,234.41,0.72]
[1758128852070,45.40329494,234.47,234.38,0.2]
[1758128852277,78.26329494,234.47,234.44,0.72]
[1758128853183,78.26329494,234.47,234.38,0.2]
[1758128853184,78.26329494,234.47,234.46,0.78]
[1758128853587,78.26329494,234.47,234.46,0.06]
[1758128854989,78.26329494,234.47,234.46,0.73]
[1758128855475,73.998357,234.47,234.46,0.73]
[1758128855863,41.138357,234.47,234.46,0.73]
[1758128856066,73.998357,234.47,234.46,0.73]
[1758128856785,41.138357,234.47,234.46,0.73]
[1758128856986,13.59559401,234.49,234.46,0.73]
[1758128857170,13.59559401,234.52,234.46,6.53788283]
[1758128857362,26.0,234.48,234.47,0.67]
[1758128857766,17.85920462,234.55,234.47,2.21276299]
[1758128857994,15.138357,234.53,234.48,0.67]
[1758128858178,32.86,234.52,234.48,2.21276299]
[1758128858370,26.0,234.5,234.49,0.67]
[1758128858567,26.0,234.5,234.46,5.86788283]
[1758128858782,26.0,234.5,234.46,4.32511984]
[1758128859290,1.54276299,234.48,234.46,0.06]
[1758128859469,1.54276299,234.47,234.46,0.73]
[1758128859993,34.40276299,234.48,234.46,0.73]
[1758128860188,47.998357,234.48,234.47,0.67]
[1758128860400,46.45559401,234.48,234.47,0.67]
[1758128860994,32.86,234.48,234.47,0.67]
[1758128861675,32.86,234.49,234.47,0.67]
[1758128861989,32.86,234.49,234.48,0.67]
[1758128863097,32.86,234.49,234.48,4.93473406]
[1758128863289,32.86,234.5,234.48,6.47749705]
[1758128863595,32.86,234.51,234.49,0.67]
[1758128863772,32.86,234.51,234.5,0.67]
[1758128865698,32.86,234.51,234.48,4.93463887]
[1758128866195,32.86,234.51,234.49,0.67]
[1758128866566,32.86,234.51,234.47,0.67]
[1758128866768,32.86,234.51,234.48,0.67]
[1758128867203,1.54276299,234.5,234.46,0.06]
[1758128867395,26.0,234.48,234.46,0.06]
[1758128867582,32.86,234.47,234.46,0.06]
[1758128867784,32.86,234.47,234.46,0.73]
[1758128870090,1.57276299,234.51,234.46,0.73]
[1758128870268,32.86,234.5,234.46,4.99511984]
[1758128870474,26.0,234.48,234.47,0.67]
[1758128870704,26.0,234.48,234.46,4.32511984]
[1758128870705,58.86,234.48,234.46,4.32511984]
[1758128871499,32.86,234.48,234.47,4.93493794]
[1758128872515,32.86,234.49,234.47,4.93493794]
[1758128872707,32.86,234.49,234.48,0.67]
[1758128873517,0.03,234.51,234.48,4.93467868]
[1758128873712,32.86,234.5,234.48,4.26467868]
[1758128873918,32.86,234.5,234.49,0.67]
[1758128874303,32.86,234.5,234.46,0.06]
[1758128874504,34.40276299,234.5,234.46,0.06]
[1758128874712,34.40276299,234.5,234.47,0.67]
[1758128876416,32.86,234.5,234.47,0.67]
[1758128876799,34.40276299,234.5,234.46,0.06]
[1758128876997,32.86,234.5,234.46,0.73]
[1758128877927,32.86,234.5,234.46,4.3250394]
[1758128878107,32.86,234.5,234.47,0.71]
[1758128879734,32.86,234.5,234.46,4.3250394]
[1758128880034,32.86,234.5,234.46,5.0350394]
[1758128881014,33.54,234.5,234.46,5.0350394]
[1758128881722,33.54,234.5,234.46,0.77]
[1758128882024,15.818357,234.49,234.46,0.06]
[1758128882202,32.86,234.48,234.46,0.06]
[1758128882409,15.138357,234.47,234.46,0.06]
[1758128882625,15.818357,234.47,234.46,0.06]
[1758128884431,20.96698037,234.47,234.46,0.06]
[1758128885537,39.59559401,234.44,234.43,0.06]
[1758128885727,73.998357,234.44,234.43,0.06]
[1758128886029,74.678357,234.44,234.43,0.06]
[1758128886408,78.9438407,234.44,234.43,0.06]
[1758128895233,78.2638407,234.44,234.43,0.06]
[1758128895641,78.9438407,234.44,234.43,0.06]
[1758128899541,91.31728046,234.44,234.41,0.06]
[1758128899737,15.138357,234.42,234.41,0.06]
[1758128900048,47.998357,234.42,234.41,0.06]
[1758128900346,48.678357,234.42,234.41,0.06]
[1758128900923,47.13559401,234.42,234.41,0.06]
[1758128901130,48.678357,234.42,234.41,0.06]
[1758128901336,52.94420462,234.42,234.41,0.06]
[1758128902951,52.26420462,234.42,234.41,0.06]
[1758128903453,52.94420462,234.42,234.41,0.06]
[1758128903748,19.40420462,234.42,234.41,0.06]
[1758128903946,52.26420462,234.42,234.41,0.06]
[1758128904448,19.40420462,234.42,234.41,0.06]
[1758128904650,52.26420462,234.42,234.41,0.06]
[1758128905346,19.40420462,234.42,234.41,0.06]
[1758128905532,52.26420462,234.42,234.41,0.06]
[1758128907851,53.13377478,234.42,234.41,0.06]
[1758128908038,53.81377478,234.42,234.41,0.06]
[1758128913869,39.59559401,234.39,234.38,0.2]
[1758128914074,77.28026031,234.39,234.38,0.2]
[1758128914249,77.94026031,234.39,234.38,0.2]
[1758128914857,77.28026031,234.39,234.38,0.2]
[1758128915065,74.86792716,234.39,234.38,0.2]
[1758128915851,79.13432077,234.39,234.38,0.2]
[1758128916063,79.79432077,234.39,234.38,0.2]
[1758128916754,82.20665392,234.39,234.38,0.2]
[1758128917457,26.40559401,234.38,234.36,0.06]
[1758128917775,53.13468485,234.37,234.36,0.06]
[1758128918074,53.79468485,234.37,234.36,0.06]
[1758128918971,57.40379758,234.37,234.36,0.06]
[1758128919171,53.13468485,234.37,234.36,0.06]
[1758128919472,66.60468485,234.37,234.36,0.06]
[1758128919654,53.79468485,234.37,234.36,0.06]
[1758128920153,53.79468485,234.37,234.29,0.67]
[1758128920154,39.59559401,234.33,234.29,0.67]
[1758128920354,39.59559401,234.29,234.21,4.26966178]
[1758128920657,2.41233315,234.27,234.21,4.26966178]
[1758128920958,2.41233315,234.25,234.22,0.67]
[1758128921150,2.41233315,234.27,234.23,4.26930794]
[1758128921473,32.86,234.26,234.24,0.67]
[1758128921679,32.86,234.25,234.24,0.67]
[1758128925261,48.86792716,234.25,234.24,0.67]
[1758128925472,13.59559401,234.24,234.22,0.67]
[1758128925672,35.29233315,234.23,234.21,0.06]
[1758128925864,32.88,234.23,234.22,0.67]
[1758128926953,46.47559401,234.23,234.22,0.67]
[1758128929373,16.00792716,234.23,234.22,0.67]
[1758128929580,46.47559401,234.23,234.22,0.67]
[1758128931159,32.88,234.23,234.22,0.67]
[1758128935468,46.47559401,234.23,234.22,0.67]
[1758128935869,48.88792716,234.23,234.22,0.67]
[1758128936265,13.59559401,234.23,234.22,0.67]
[1758128936465,46.47559401,234.23,234.22,0.67]
[1758128938764,35.29233315,234.23,234.22,0.67]
[1758128938965,32.88,234.23,234.22,0.67]
[1758128939378,58.88,234.23,234.22,0.67]
[1758128940678,58.88,234.23,234.22,0.73]
[1758128940873,26.0,234.23,234.22,4.99949022]
[1758128941183,58.88,234.23,234.22,4.99949022]
[1758128942586,4.26787216,234.31,234.22,4.99949022]
[1758128942786,13.59559401,234.29,234.24,2.41233315]
[1758128943008,0.69,234.32,234.25,7.40127658]
[1758128943009,32.88,234.28,234.25,7.40127658]
[1758128943304,18.55308761,234.33,234.27,2.41233315]
[1758128943601,26.0,234.3,234.28,0.72]
[1758128943805,32.88,234.29,234.28,0.72]
[1758128945175,26.0,234.31,234.28,4.98839679]
[1758128945475,26.0,234.31,234.29,0.66]
[1758128945674,32.88,234.3,234.28,6.68072994]
[1758128945871,26.0,234.31,234.28,6.68072994]
[1758128946085,32.88,234.3,234.27,2.41233315]
[1758128946399,32.88,234.29,234.28,0.66]
[1758128947203,32.88,234.29,234.26,4.92870639]
[1758128947371,32.88,234.29,234.27,0.66]
[1758128947690,32.88,234.29,234.22,0.06]
[1758128947691,16.72792716,234.28,234.22,0.06]
[1758128947884,2.41233315,234.23,234.22,0.06]
[1758128948085,35.29233315,234.23,234.22,0.06]
[1758128950304,2.41233315,234.23,234.22,0.06]
[1758128950528,48.88792716,234.23,234.22,0.06]
[1758128950718,53.8772351,234.23,234.22,0.06]
[1758128952605,49.60792716,234.23,234.22,0.06]
[1758128953196,53.8772351,234.23,234.22,0.06]
[1758128958807,20.9972351,234.23,234.22,0.06]
[1758128959007,13.59559401,234.22,234.21,0.06]
[1758128959407,42.00792716,234.19,234.18,0.06]
[1758128959600,79.1579643,234.19,234.18,0.06]
[1758128959824,79.8779643,234.19,234.18,0.06]
[1758128962403,46.9979643,234.19,234.18,0.06]
[1758128962720,79.8779643,234.19,234.18,0.06]
[1758128963520,79.8779643,234.19,234.02,4.64350296]
[1758128963521,26.0,234.11,234.03,4.27295645]
[1758128963727,28.41233315,234.07,234.04,0.66]
[1758128963896,26.0,234.03,234.01,0.66]
[1758128964101,35.43233315,234.02,234.01,0.66]
[1758128964305,61.43233315,234.02,233.95,4.27441761]
[1758128964506,61.43233315,234.02,233.98,0.66]
[1758128964905,33.02,234.01,233.95,14.96046163]
[1758128965119,2.41233315,234.0,233.96,0.66]
[1758128965318,35.43233315,233.99,233.96,0.66]
[1758128965627,33.02,233.98,233.96,0.66]
[1758128966019,33.02,233.97,233.96,0.66]
[1758128966216,2.41233315,234.0,233.96,4.93423491]
[1758128966419,33.02,233.99,233.97,0.66]
[1758128966609,46.61559401,233.99,233.98,0.66]
[1758128967214,10.68610934,234.03,233.98,0.66]
[1758128967417,13.59559401,234.0,233.98,0.66]
[1758128967625,33.02,233.99,233.96,14.95982218]
[1758128968017,34.56876995,233.99,233.96,14.95982218]
[1758128968218,34.56876995,233.99,233.97,0.66]
[1758128968418,34.56876995,233.99,233.98,0.66]
[1758128969326,33.02,233.99,233.98,0.66]
[1758128970313,33.02,233.99,233.98,4.93386956]
[1758128972221,33.0,233.99,233.98,4.93386956]
[1758128972729,34.54876995,233.99,233.98,0.66]
[1758128973124,35.26876995,233.99,233.94,0.66]
[1758128973428,1.54876995,233.96,233.95,0.66]
[1758128973606,34.54876995,233.96,233.95,0.66]
[1758128973810,34.54876995,233.96,233.92,10.68719615]
[1758128973811,34.54876995,233.96,233.93,0.67]
[1758128974333,1.54876995,233.94,233.93,4.94478305]
[1758128974538,34.54876995,233.94,233.93,4.94478305]
[1758128974926,1.54876995,233.94,233.93,4.94478305]
[1758128975110,34.56876995,233.94,233.93,4.94478305]
[1758128975433,34.56876995,233.94,233.93,4.27478305]
[1758128975931,34.54876995,233.94,233.93,4.94478305]
[1758128976334,34.54876995,233.94,233.89,10.68857118]
[1758128976335,13.59559401,233.93,233.88,0.67]
[1758128976525,13.59559401,233.93,233.86,14.9662191]
[1758128976526,1.54876995,233.9,233.86,4.9460626]
[1758128976720,1.54876995,233.88,233.86,4.9460626]
[1758128976909,33.04,233.87,233.86,4.9460626]
[1758128977314,24.28691322,233.93,233.86,15.6362191]
[1758128977515,59.06,233.92,233.87,0.67]
[1758128977912,33.08,233.91,233.87,0.67]
[1758128978111,33.08,233.9,233.87,0.67]
[1758128978332,33.08,233.9,233.88,4.27569693]
[1758128978528,33.08,233.9,233.89,0.67]
[1758128978839,35.32876995,233.9,233.85,4.27624545]
[1758128979041,1.54876995,233.88,233.86,0.73]
[1758128979226,33.06,233.87,233.86,0.73]
[1758128979624,33.06,233.87,233.86,5.0060626]
[1758128980038,33.06,233.87,233.86,4.3360626]
[1758128980239,33.1,233.87,233.86,5.0060626]
[1758128981238,1.54876995,233.9,233.86,5.0060626]
[1758128981427,33.1,233.89,233.86,4.3360626]
[1758128981630,15.84436396,233.88,233.86,0.06]
[1758128981822,46.69559401,233.87,233.86,0.06]
[1758128982241,47.39559401,233.87,233.86,0.06]
[1758128982746,48.24436396,233.87,233.86,4.33602206]
[1758128983545,48.24436396,233.87,233.86,0.06]
[1758128984801,15.14436396,233.87,233.86,0.06]
[1758128985001,48.24436396,233.87,233.86,0.06]
[1758128986611,34.64876995,233.87,233.86,0.06]
[1758128987878,33.1,233.87,233.86,0.06]
[1758128988096,34.64876995,233.87,233.86,0.06]
[1758128990399,48.24436396,233.87,233.86,0.06]
[1758128990608,48.22436396,233.87,233.86,5.0060626]
[1758128990810,48.22436396,233.87,233.86,4.3360626]
[1758128991398,15.14436396,233.87,233.86,4.3360626]
[1758128991617,48.20436396,233.87,233.86,4.3360626]
[1758128992510,15.14436396,233.87,233.86,4.3360626]
[1758128992818,48.20436396,233.87,233.86,4.3360626]
[1758128993212,15.14436396,233.87,233.86,4.3360626]
[1758128993413,48.20436396,233.87,233.86,4.3360626]
[1758128994425,10.69219633,233.91,233.86,15.6962191]
[1758128994605,0.7,233.95,233.87,0.67]
[1758128994606,1.54876995,233.93,233.87,0.67]
[1758128994801,33.06,233.92,233.87,0.67]